[Event "44th Chess Olympiad Open 2022"]
[Site "Chennai"]
[Date "2022.07.30"]
[Round "2.69"]
[White "dos Reis, Tito"]
[Black "Darmanin, Jake"]
[Result "0-1"]
[ECO "A03"]
[WhiteElo "1658"]
[BlackElo "2101"]
[Annotator "TA"]
[PlyCount "131"]
[EventDate "2022.07.29"]
[EventType "team-tourn"]
[EventCountry "IND"]
[SourceTitle "playchess.com"]
[Source "ChessBase"]
[SourceQuality "1"]
[WhiteTeam "TLS"]
[BlackTeam "Malta"]
[BlackTeamCountry "MLT"]
[TimeControl "40/5400+30:1800+30"]

{[%evp 9,131,-17,-14,-23,-7,-12,0,-21,-9,-10,22,-10,-1,0,37,12,27,28,63,67,75,67,199,203,188,70,88,75,95,65,191,72,43,31,88,121,99,134,141,145,166,97,131,121,112,112,737,735,3300,697,593,0,168,217,180,0,0,-494,-462,-475,-475,-968,-931,-1049,-645,-766,-558,-554,-535,-1131,-1047,-1132,-1147,-1121,-1098,-1127,-1129,-1048,-969,-1145,-506,-487,-538,-549,-551,-499,-489,-651,-650,-633,-564,-1187,-1006,-2293,-2112,-1663,-1108,-1108,-1041,-1026,-933,-934,-890,-1579,0,-582,0,-935,0,0,0,-29987,-29988,-29989,-29990,-29990,-29987,-29987,-29988,-29988,-29987,-29987,-29988,-29988]} 1. f4 {[%emt 0:00:07]} d5 {[%emt 0:00:11]} 2. Nf3 {[%emt 0:00:15]} c5 {[%emt 0:00:13]} 3. e3 {[%emt 0:00:17]} Nf6 {[%emt 0:00:16]} 4. c3 {[%emt 0:00:30]} Nc6 {[%emt 0:00:28]} 5. d4 {[%emt 0:00:52]} g6 {[%emt 0:02:05]} 6. Bd3 {[%emt 0:00:31] A03: Bird's Opening with 1...d5.} Bg7 {[%emt 0:00:47]} 7. Nbd2 {[%emt 0:00:55]} Qb6 {[%emt 0:03:14]} 8. Qe2 {[%emt 0:00:26] The position is equal.} O-O {[%emt 0:03:59]} 9. O-O {[%emt 0:00:33] [#]} Qc7 $146 {[%emt 0:07:03]} ({Predecessor:} 9... Bg4 10. h3 Be6 11. Ne5 Rac8 12. Ndf3 Nxe5 13. dxe5 Ne4 14. Bxe4 dxe4 15. Ng5 Bd5 {0-1 (36) Fekete,A (2315)-Avotins,M (2446) ICCF email 2011}) 10. a3 {[%emt 0:04:05]} c4 {[%emt 0:03:53]} 11. Bc2 {[%emt 0:00:22]} b5 {[%emt 0:00:21]} 12. Ne5 {[%emt 0:00:32]} a5 {[%emt 0:08:40]} 13. e4 {[%emt 0:01:19][%cal Be3e4,Be4e5][%mdl 32]} Bb7 {[%emt 0:08:39]} 14. Nxc6 {[%emt 0:00:36]} Qxc6 {[%emt 0:01:56]} 15. e5 {[%emt 0:00:35]} Nd7 {[%emt 0:03:31]} (15... Ne4 $14) 16. f5 $18 {[%emt 0:01:20]} b4 {[%emt 0:08:44]} 17. fxg6 {[%emt 0:02:34]} (17. Nf3 $1 $18) 17... fxg6 $14 {[%emt 0:04:03]} 18. Nf3 {[%emt 0:00:45]} b3 {[%emt 0:04:32]} 19. Bb1 {[%emt 0:00:50]} Rae8 {[%emt 0:03:40]} (19... Bc8 $1 $14) 20. Bd2 {[%emt 0:01:27]} (20. h4 $1 $18) 20... Bc8 $16 {[%emt 0:01:31]} 21. Qe1 {[%emt 0:02:17]} (21. Qf2 {looks sharper.} Bxe5 22. dxe5 Nxe5 23. Qe2) 21... Nb6 {[%emt 0:08:31]} (21... Rf7 $1 $14) 22. Qh4 {[%emt 0:02:00]} Na4 {[%emt 0:01:50]} (22... h5 $2 23. Qg5 Bf5 24. Nh4 Bxb1 25. Raxb1 $18) 23. Bc1 {[%emt 0:05:09]} (23. Ng5 Rxf1+ 24. Kxf1 h6 $11) 23... Qb6 {[%emt 0:00:51][%cal Oa4c3]} 24. Rf2 $1 {[%emt 0:01:33]} (24. Ng5 Rxf1+ 25. Kxf1 Rf8+ 26. Ke1 h6 $17) 24... Bf5 {[%emt 0:08:39]} 25. Bh6 {[%emt 0:01:59]} (25. Ng5 $6 h6 26. Nf3 (26. Bxf5 $2 hxg5 27. Bxg5 Rxf5 $17) 26... Bxb1 27. Rxb1 g5 $11) (25. Bxf5 $18 gxf5 26. Bg5 (26. Ng5 Qg6 $14)) 25... e6 {[%emt 0:03:44]} 26. Bxg7 {[%emt 0:02:25]} Kxg7 {[%emt 0:00:03]} 27. Bxf5 {[%emt 0:03:08]} (27. Ng5 $6 h6 28. Nh3 (28. Bxf5 $2 hxg5 29. Qg3 Rxf5 $19) 28... Qd8 29. Qxd8 Rxd8 30. Bxf5 Rxf5 31. Rxf5 exf5 $11) 27... Rxf5 {[%emt 0:00:55][%mdl 8192]} (27... exf5 $16 28. Qh3 (28. Ng5 h6 $11) 28... Qd8) 28. g4 $18 {[%emt 0:02:06]} (28. Ng5 h6 29. Nh3 Ref8 $11) 28... Rff8 {[%emt 0:01:23]} 29. Raf1 {[%emt 0:02:27]} (29. Ng5 $142 h5 30. Rf6) 29... h6 {[%emt 0:01:03] [#]} 30. Ne1 $2 {[%emt 0:08:55]} (30. Ng5 $1 $18 {[%mdl 512] White wants to mate with Rf7+.} hxg5 31. Qxg5) 30... Qd8 $2 {[%emt 0:00:45] Active counter play!} (30... Qb7 $11 {and Black has nothing to worry.}) 31. Rf6 {[%emt 0:08:36]} Nxb2 {[%emt 0:00:44]} 32. R1f3 {[%emt 0:05:22] Prevents Nd3.} (32. g5 $1 $18 h5 33. Qh3) 32... Na4 {[%emt 0:02:06]} (32... Rxf6 $2 33. exf6+ Kf7 34. Qxh6 $18) 33. Rh3 $2 {[%emt 0:01:11][%mdl 8192] [#]} (33. Ng2 $11 {and White is okay.} b2 34. Rf1) 33... Rh8 $1 $19 {[%emt 0:00:26] Hoping for ...b2.} (33... Rxf6 $2 34. Qxh6+ Kf7 35. Qh7+ Kf8 36. exf6 (36. Qh8+ Ke7 $11) 36... Qxf6 37. Rf3 Qxf3 38. Nxf3 $18) 34. Rhf3 {[%emt 0:03:28][%cal Of6g6]} Ref8 {[%emt 0:01:46] And now ...b2 would win.} 35. Qf2 {[%emt 0:04:59]} (35. g5 $142 Rxf6 36. gxh6+ Kh7 37. Rxf6) 35... Rxf6 {[%emt 0:01:43]} 36. Rxf6 {[%emt 0:00:21]} Qe8 {[%emt 0:01:03]} 37. Nf3 {[%emt 0:04:56]} b2 {[%emt 0:01:59]} 38. Qc2 {[%emt 0:00:46]} Rf8 {[%emt 0:00:53]} 39. g5 {[%emt 0:02:15]} hxg5 {[%emt 0:00:50]} 40. Nd2 {[%emt 0:07:23]} Rxf6 {[%emt 0:01:11]} 41. exf6+ {[%emt 0:30:48]} Kxf6 {[%emt 0:03:08][%mdl 4096] Endgame KQN-KQN} 42. Nb1 {[%emt 0:00:00]} Kg7 {[%emt 0:01:43]} 43. Kg2 {[%emt 0:00:00]} Qc6 {[%emt 0:05:41]} 44. Qe2 {[%emt 0:00:00]} Kh6 {[%emt 0:03:26]} (44... Qd6 $142 {Strongly threatening ...Kf6.} 45. Qe1 Kf6) 45. Qe5 {[%emt 0:00:00][%cal Re5h8]} Kh7 {[%emt 0:02:06] Prevents Qh8+.} 46. Qxg5 {[%emt 0:00:00]} Qe8 {[%emt 0:03:37] Prevents Qe7+.} 47. Qf6 {[%emt 0:00:00]} Kg8 {[%emt 0:01:08] White must now prevent ...Qf7.} 48. Qe5 {[%emt 0:00:00]} Qf7 {[%emt 0:03:07]} 49. Qb8+ {[%emt 0:00:00]} Kh7 {[%emt 0:01:49]} 50. Qb5 {[%emt 0:00:00]} Qf5 {[%emt 0:00:07]} 51. Qb7+ {[%emt 0:02:09]} Kh6 {[%emt 0:00:46]} 52. Qb8 {[%emt 0:00:54]} Qe4+ {[%emt 0:03:35]} ({Weaker is} 52... Qxb1 53. Qf4+ g5 54. Qf8+ Kh7 55. Qe7+ Kg8 56. Qe8+ Kg7 57. Qe7+ Kh6 58. Qf8+ Kh5 59. Qh8+ Kg6 60. Qe8+ Kh6 61. Qf8+ $11) 53. Kg3 {[%emt 0:01:57]} Qd3+ {[%emt 0:01:03]} 54. Kg4 {[%emt 0:00:44]} Qe2+ {[%emt 0:01:02]} 55. Kg3 {[%emt 0:00:12]} Qe1+ {[%emt 0:00:45]} 56. Kg2 {[%emt 0:00:14]} Qe2+ {[%emt 0:03:57]} ({And not} 56... Qxb1 57. Qf4+ g5 58. Qf8+ Kh7 59. Qe7+ Kh6 60. Qf8+ Kh7 61. Qe7+ Kg8 62. Qe8+ Kh7 63. Qe7+ $11) (56... Qe3 $142 57. Qf8+ Kh5) 57. Kg3 $1 {[%emt 0:00:20] [#] Intending Qh8+ and mate.} Qd3+ $2 {[%emt 0:01:03]} (57... Qe3+ $1 $19 58. Kg4 Qg5+ 59. Kf3 Qf6+ 60. Kg3 Kh5) 58. Kg2 $2 {[%emt 0:00:30][%mdl 8192]} (58. Kg4 $11 Qd1+ 59. Kg3 Qg1+ 60. Kf3 Qd1+ 61. Kf2) 58... Qxb1 $2 {[%emt 0:00:21]} ({Black should try} 58... Qe3 $19 59. Qg8 Qg5+ 60. Kf2 Qf6+ 61. Ke1 Qh4+ 62. Kf1 Qf4+ 63. Kg2 e5 64. dxe5 Qg5+ 65. Kf3 Qf5+ 66. Kg2 Qe4+ 67. Kf2 Qxe5 68. Qf8+ Kg5 69. h4+ Kg4 70. Qf3+ Kxh4) 59. Qf4+ $11 {[%emt 0:00:36]} g5 {[%emt 0:02:25]} 60. Qf6+ {[%emt 0:00:47][%mdl 8192]} (60. Qf8+ $11 Kh5 61. Qh8+ Kg6 62. Qe8+ Kg7 63. Qe7+ Kh8 64. Qe8+ Kh7 65. Qf7+ Kh8 66. Qe8+ Kh7 67. Qf7+ Kh8 68. Qe8+) 60... Qg6 {[%emt 0:00:33] Black mates.} ({Stronger than} 60... Kh5 61. Qh8+ Kg6 62. Qe8+ Kg7 63. Qe7+ Kg8 64. Qe8+ Kh7 65. Qf7+ Kh8 66. Qf8+ Kh7 67. Qf7+ Kh8 68. Qf8+ Kh7 69. Qf7+ $11) 61. Qh8+ {[%emt 0:00:25]} Qh7 {[%emt 0:00:07]} 62. Qf8+ {[%emt 0:01:39]} Qg7 {[%emt 0:00:18]} 63. Qb8 {[%emt 0:01:30]} Nxc3 {[%emt 0:00:31]} 64. Qxb2 {[%emt 0:00:24]} Qxd4 {[%emt 0:00:08]} 65. Qf2 {[%emt 0:06:34]} Qxf2+ {[%emt 0:00:09]} 66. Kxf2 {[%emt 0:00:09] Weighted Error Value: White=0.83/Black=0.50} 0-1

[Event "44th Chess Olympiad Open 2022"]
[Site "Chennai"]
[Date "2022.07.30"]
[Round "2.70"]
[White "Nyambalo, Joseph Xavier"]
[Black "Masiala Mayuku, Eddy"]
[Result "1-0"]
[ECO "A25"]
[WhiteElo "1981"]
[BlackElo "1574"]
[Annotator "TA"]
[PlyCount "145"]
[EventDate "2022.07.29"]
[EventType "team-tourn"]
[EventCountry "IND"]
[SourceTitle "playchess.com"]
[Source "ChessBase"]
[SourceQuality "1"]
[WhiteTeam "MAW"]
[BlackTeam "COD"]
[TimeControl "40/5400+30:1800+30"]

{[%evp 9,144,62,65,67,97,103,103,91,137,136,129,79,80,80,150,113,112,112,162,143,143,139,191,195,208,166,195,196,221,166,233,232,236,201,194,156,196,196,197,185,258,249,280,270,277,218,281,259,354,350,332,268,396,412,407,397,428,420,816,795,1111,1110,1081,1073,1067,1052,1054,1052,1011,924,902,868,1093,1074,943,930,1485,1395,2416,2315,12840,12835,12835,12836,12834,12834,12842,12843,12843,12843,29984,29985,29985,29986,29988,12845,12849,12847,12848,12848,12849,12849,12850,27999,27999,27999,27999,27999,27999,27999,27999,27999,27999,27999,27999,27999,27999,27999,27999,27999,27999,27999,27999,27999,27999,27999,27999,27999,27999,27999,27999,27999,27999,27999,27999,27999,27999]} 1. c4 {[%emt 0:00:04]} e5 {[%emt 0:00:40]} 2. Nc3 {[%emt 0:00:05]} Nc6 {[%emt 0:00:59]} 3. g3 {[%emt 0:00:07]} b6 {[%emt 0:00:46]} 4. Bg2 {[%emt 0:00:05]} Bb7 {[%emt 0:02:04]} 5. Nf3 {[%emt 0:00:08]} d6 {[%emt 0:01:04]} 6. O-O {[%emt 0:03:19] A25: English Opening vs King's Indian with ...Nc6 but without early d3.} g6 {[%emt 0:01:22]} 7. d4 {[%emt 0:00:58] Threatens to win with dxe5.} Bg7 {[%emt 0:01:37][%cal Rc6d4] [#]} 8. dxe5 $146 {[%emt 0:02:09] White is better.} ({Predecessor:} 8. Bg5 f6 9. Be3 Nxd4 10. Nxd4 exd4 11. Bxb7 dxe3 12. Bc6+ Kf8 13. Bxa8 exf2+ 14. Rxf2 Qxa8 15. e4 Ne7 16. Nd5 Nxd5 17. cxd5 Kf7 18. Rc1 Qc8 19. Rfc2 {1-0 (19) De Souza Filho,N (2132)-Da Cunha Alves,A Vila Velha 2012}) 8... Nxe5 {[%emt 0:01:18]} (8... dxe5 $142 9. Nd5 Nce7) 9. Nxe5 $16 {[%emt 0:00:34]} Bxg2 {[%emt 0:02:21]} 10. Nxf7 {[%emt 0:02:25] White is more active.} ({Resist} 10. Kxg2 $6 Bxe5 11. Qc2 Ne7 $14) (10. Qa4+ $142 Kf8 11. Nd7+ (11. Kxg2 Bxe5 12. Nd5 h5 $14) 11... Ke7 12. Bg5+ (12. Kxg2 Qxd7 13. Qc2 f5 $14) 12... f6 13. Nxf6 (13. Kxg2 Qxd7 14. Bd2 Qxa4 $11) 13... Bxf6 14. Bxf6+ Nxf6 15. Kxg2) 10... Kxf7 {[%emt 0:02:30]} 11. Kxg2 {[%emt 0:02:21] And now Qd5+ would win.} Nf6 {[%emt 0:00:51] Against Qd5+} (11... Bxc3 $142 12. bxc3 (12. Qd5+ Kg7 $16) 12... Nf6) 12. Nd5 {[%emt 0:02:10]} Re8 {[%emt 0:00:48]} 13. Bg5 {[%emt 0:01:24]} h6 {[%emt 0:00:38]} (13... c6 $16) 14. Nxf6 {[%emt 0:00:31]} Bxf6 {[%emt 0:00:37]} 15. Bxh6 {[%emt 0:01:33]} Kg8 {[%emt 0:02:15]} (15... Qd7 $16) 16. Qc2 $18 {[%emt 0:00:38]} Kf7 {[%emt 0:01:12]} 17. Be3 {[%emt 0:03:03]} Qe7 {[%emt 0:01:23]} 18. Rad1 {[%emt 0:01:25]} Rh8 {[%emt 0:00:20]} 19. h3 {[%emt 0:09:42]} Rh7 {[%emt 0:00:29]} (19... Bxb2 $142 20. c5 (20. Qxb2 Qe4+ 21. f3 Qxe3 $16) 20... Be5) 20. Rh1 {[%emt 0:04:24]} Rah8 {[%emt 0:00:38]} 21. Rh2 {[%emt 0:01:18]} Qe6 {[%emt 0:01:35]} 22. Rdh1 {[%emt 0:00:19]} Rh5 {[%emt 0:01:43]} 23. b3 {[%emt 0:00:30]} Re5 {[%emt 0:04:12]} 24. Qd3 {[%emt 0:05:13]} Rd8 {[%emt 0:01:23]} (24... Rhh5 $142 25. Rd1 Re4) 25. h4 {[%emt 0:02:01]} Rh5 {[%emt 0:00:53]} 26. Bg5 {[%emt 0:02:04]} d5 {[%emt 0:01:31]} 27. Bxf6 {[%emt 0:00:36]} Qxf6 {[%emt 0:00:50]} 28. Rd1 {[%emt 0:02:05]} c6 {[%emt 0:01:43]} 29. e4 {[%emt 0:01:37]} d4 {[%emt 0:03:27]} 30. Qf3 {[%emt 0:05:01] Strongly threatening Qxf6+.} c5 {[%emt 0:00:44]} (30... Ra5 $142 31. Qe2 Rh5) 31. Qxf6+ {[%emt 0:01:22]} Kxf6 {[%emt 0:00:35][%mdl 4096] Endgame KRR-KRR} 32. f4 {[%emt 0:00:02] Prevents Re5.} Rh7 {[%emt 0:01:09]} 33. Kf3 {[%emt 0:00:39]} d3 {[%emt 0:00:31]} (33... Ke6 $142 34. Rdh1 Rdh8) 34. Rhd2 {[%emt 0:00:14]} Re7 {[%emt 0:01:46]} 35. Rxd3 {[%emt 0:00:12]} Rde8 {[%emt 0:00:26]} 36. Rd6+ {[%emt 0:00:01]} Kf7 {[%emt 0:00:22]} 37. Rd7 {[%emt 0:00:06]} a6 {[%emt 0:00:57]} 38. e5 {[%emt 0:00:16]} b5 {[%emt 0:00:21]} 39. cxb5 {[%emt 0:00:49]} axb5 {[%emt 0:00:40]} 40. Rxe7+ {[%emt 0:00:14]} Rxe7 {[%emt 0:00:32] KR-KR} 41. Rc1 {[%emt 0:30:20]} Rc7 {[%emt 0:30:24]} 42. Ke4 {[%emt 0:00:06]} Ke6 {[%emt 0:00:34]} 43. g4 {[%emt 0:00:10][%cal Bg3g4,Bg4g5][%mdl 32] [#] aiming for f5+.} Rc6 {[%emt 0:01:01]} 44. f5+ {[%emt 0:09:00]} Kf7 {[%emt 0:02:19]} 45. e6+ {[%emt 0:00:53]} Kf6 {[%emt 0:01:17]} 46. g5+ {[%emt 0:00:04]} Ke7 {[%emt 0:00:30]} 47. fxg6 {[%emt 0:01:44]} Rxe6+ {[%emt 0:00:22]} 48. Kf5 {[%emt 0:00:04] [#] Threatening mate with g7.} Re2 {[%emt 0:00:59]} 49. Rxc5 {[%emt 0:00:34] Intending Re5+ and mate.} Rf2+ {[%emt 0:01:12]} 50. Kg4 {[%emt 0:00:08]} Rg2+ {[%emt 0:00:17]} 51. Kh5 {[%emt 0:00:07]} Rxa2 {[%emt 0:00:36]} 52. Rxb5 {[%emt 0:00:24]} (52. Rc8 $142 Kd7 53. Rf8 Kd6 54. g7 Ra4 55. bxa4 bxa4 56. g8=Q Kc5 57. Rf4) 52... Rh2 {[%emt 0:01:45]} 53. Rf5 {[%emt 0:00:14]} Rd2 {[%emt 0:00:42]} 54. g7 {[%emt 0:01:32]} Rd8 {[%emt 0:03:35]} 55. Rf8 {[%emt 0:00:00]} Rxf8 {[%emt 0:01:03]} 56. gxf8=R {[%emt 0:00:00]} Kxf8 {[%emt 0:00:43] KP-KP. White mates.} 57. Kg6 {[%emt 0:00:00]} Kg8 {[%emt 0:00:18]} 58. b4 {[%emt 0:00:00]} Kh8 {[%emt 0:00:52]} 59. b5 {[%emt 0:00:04]} Kg8 {[%emt 0:00:16]} 60. b6 {[%emt 0:00:03]} Kf8 {[%emt 0:00:15]} 61. b7 {[%emt 0:00:46]} Ke7 {[%emt 0:02:02]} 62. b8=Q {[%emt 0:00:13]} Ke6 {[%emt 0:00:26]} 63. Qe8+ {[%emt 0:00:16]} Kd5 {[%emt 0:00:15]} 64. Kf5 {[%emt 0:00:33]} Kd4 {[%emt 0:00:30]} 65. Qe4+ {[%emt 0:00:07]} Kc3 {[%emt 0:00:18]} 66. Qd5 {[%emt 0:00:02]} Kb4 {[%emt 0:00:23]} 67. Qc6 {[%emt 0:00:03]} Kb3 {[%emt 0:00:26]} 68. Ke4 {[%emt 0:00:03]} Kb4 {[%emt 0:00:20]} 69. Kd4 {[%emt 0:00:02]} Kb3 {[%emt 0:00:22]} 70. Qc3+ {[%emt 0:00:10]} Ka2 {[%emt 0:00:15]} 71. Qb4 {[%emt 0:00:03]} Ka1 {[%emt 0:00:25]} 72. Kc3 {[%emt 0:00:03]} Ka2 {[%emt 0:00:20]} 73. Qb2# {[%emt 0:00:11] Weighted Error Value: White=0.16 (very precise) /Black=0.34} 1-0

[Event "44th Chess Olympiad Open 2022"]
[Site "Chennai"]
[Date "2022.07.30"]
[Round "2.70"]
[White "Esungi, Guy Botetsi"]
[Black "Chiwambo Stansford"]
[Result "0-1"]
[ECO "B50"]
[WhiteElo "1481"]
[BlackElo "1913"]
[Annotator "TA"]
[PlyCount "58"]
[EventDate "2022.07.29"]
[EventType "team-tourn"]
[EventCountry "IND"]
[SourceTitle "playchess.com"]
[Source "ChessBase"]
[SourceQuality "1"]
[WhiteTeam "COD"]
[BlackTeam "MAW"]
[TimeControl "40/5400+30:1800+30"]

{[%evp 9,58,-14,-18,-27,-25,-29,-27,-30,0,-38,-33,-47,-41,-39,-39,-304,-311,-307,-295,-662,-504,-866,-562,-709,-478,-448,-339,-745,-730,-972,-551,-720,-455,-504,-521,-729,-448,-700,-438,-630,-431,-2101,-2092,-2162,-2127,-29995,-29996,-29996,-29997,-29997,-29998]} 1. e4 {[%emt 0:00:23]} c5 {[%emt 0:00:07]} 2. Nc3 {[%emt 0:00:37]} Nc6 {[%emt 0:00:25]} 3. Nf3 {[%emt 0:00:32]} d6 {[%emt 0:01:36]} 4. Be2 {[%emt 0:01:09]} g6 {[%emt 0:00:18]} 5. d3 {[%emt 0:01:08]} Bg7 {[%emt 0:00:14]} 6. Bd2 {[%emt 0:01:29] B50: Sicilian: 2...d6, Miscellaneous.} e6 {[%emt 0:00:28]} 7. O-O {[%emt 0:01:24]} Nge7 {[%emt 0:02:20]} 8. Qc1 {[%emt 0:02:59] Black has an edge.} h6 {[%emt 0:01:02] [#]} 9. Nd1 $146 {[%emt 0:02:04]} ({Predecessor:} 9. a3 Rb8 10. Rb1 a5 11. Ne1 b5 12. Bg4 Nd4 13. Ne2 h5 14. Nxd4 hxg4 15. Ne2 {0-1 (37) Boo Aldanondo,A (1703)-Rizouk,A (2447) San Sebastian 2006}) 9... d5 {[%emt 0:00:49]} 10. Bc3 {[%emt 0:06:09]} d4 {[%emt 0:01:02]} 11. Bd2 {[%emt 0:00:40]} g5 {[%emt 0:00:56]} 12. Bxg5 $2 {[%emt 0:04:18][%mdl 8192] Loses the game.} hxg5 $19 {[%emt 0:00:26]} 13. Qxg5 {[%emt 0:00:48]} Ng6 {[%emt 0:01:37]} 14. Qxc5 {[%emt 0:03:52]} (14. Qxd8+ Kxd8 15. g3) 14... e5 {[%emt 0:03:12] [#] Strongly threatening ...Nf4.} 15. b3 {[%emt 0:08:15]} (15. g3 $142 Bh3 16. Qb5) 15... Be6 {[%emt 0:00:52]} 16. Nb2 {[%emt 0:01:05]} Qc7 {[%emt 0:04:29]} 17. Nc4 {[%emt 0:04:54]} O-O-O {[%emt 0:04:10]} 18. Ng5 $2 {[%emt 0:05:28]} (18. g3 f6 19. Qb5) 18... Nf4 {[%emt 0:01:44]} 19. Bf3 {[%emt 0:03:18]} Kb8 {[%emt 0:02:55]} 20. Nxe6 {[%emt 0:03:02]} Nxe6 {[%emt 0:00:59]} 21. Qb5 {[%emt 0:02:41]} Rdg8 {[%emt 0:03:18]} 22. a4 {[%emt 0:01:39]} Ng5 {[%emt 0:01:04]} 23. Be2 {[%emt 0:03:40]} (23. Bg4 $142 Ne6 24. g3) 23... Bf6 {[%emt 0:02:12] [#] Hoping for ...Nh3+.} 24. Kh1 {[%emt 0:01:27]} (24. Bg4 $142 Nxe4 25. dxe4 Rxg4 26. g3) 24... Rh6 {[%emt 0:01:40]} 25. g3 {[%emt 0:15:40]} (25. Bg4 $142 Nxe4 26. dxe4 Rxg4 27. h3) 25... Rgh8 {[%emt 0:02:30]} 26. h4 {[%emt 0:01:22]} Qd7 {[%emt 0:00:50]} 27. Nd6 {[%emt 0:04:53]} Rxh4+ {[%emt 0:03:56] Black mates.} 28. gxh4 {[%emt 0:04:05]} Qh3+ {[%emt 0:00:09]} 29. Kg1 {[%emt 0:00:53]} Nf3+ {[%emt 0:00:06] Weighted Error Value: White=1.89/Black=0.89} 0-1